bitfinex-derivatives/quotes_BTCF0:USTF0_20250828
["timestamp","ask_amount","ask_price","bid_price","bid_amount"]
[1756352858453,0.06529,111960.0,111950.0,1.41188756]
[1756352858653,0.10001,111960.0,111950.0,1.41188756]
[1756352862162,0.10001,111960.0,111950.0,0.59040756]
[1756352862364,0.14293,111960.0,111950.0,0.59040756]
[1756352862557,0.14293,111960.0,111950.0,0.07429]
[1756352862763,0.94972926,111960.0,111950.0,0.07429]
[1756352863065,0.94972926,111960.0,111950.0,0.47240926]
[1756352863250,0.56972926,111960.0,111950.0,0.47240926]
[1756352863451,0.56972926,111960.0,111950.0,0.04561]
[1756352863653,0.56972926,111960.0,111950.0,0.03519]
[1756352863856,0.91972926,111960.0,111950.0,0.47240926]
[1756352866565,0.14293,111960.0,111950.0,0.47240926]
[1756352866765,0.92972926,111960.0,111950.0,0.47240926]
[1756352867464,0.92972926,111960.0,111950.0,0.03519]
[1756352867766,0.92972926,111960.0,111950.0,0.44304926]
[1756352868865,0.92972926,111960.0,111940.0,0.04026]
[1756352868866,0.14197,111950.0,111940.0,0.07625]
[1756352869067,0.56876926,111950.0,111940.0,0.50294926]
[1756352869265,0.14197,111950.0,111940.0,0.50294926]
[1756352869466,0.56876926,111950.0,111940.0,0.50294926]
[1756352869864,0.56876926,111950.0,111940.0,0.59227556]
[1756352870161,0.96297,111960.0,111950.0,0.07615]
[1756352870367,0.96277,111960.0,111950.0,0.50294926]
[1756352870669,1.38956926,111960.0,111950.0,0.50294926]
[1756352871266,0.14197,111960.0,111950.0,0.59226756]
[1756352871467,0.96977,111960.0,111950.0,0.59226756]
[1756352872270,0.14197,111960.0,111950.0,0.59226756]
[1756352872467,0.11003,111960.0,111950.0,0.59226756]
[1756352872671,0.08586,111960.0,111950.0,0.59226756]
[1756352873171,0.1188,111960.0,111950.0,0.59226756]
[1756352873974,0.08586,111960.0,111950.0,0.59226756]
[1756352874172,0.06683,111960.0,111950.0,0.59226756]
[1756352874468,0.09977,111960.0,111950.0,0.59226756]
[1756352875074,0.12394,111960.0,111950.0,0.59226756]
[1756352875775,0.12294,111960.0,111950.0,0.59226756]
[1756352876074,0.09877,111960.0,111950.0,0.59226756]
[1756352876275,0.06583,111960.0,111950.0,0.59226756]
[1756352876470,0.09877,111960.0,111950.0,0.59226756]
[1756352879570,0.12294,111960.0,111950.0,0.59226756]
[1756352880172,0.06583,111960.0,111950.0,0.59226756]
[1756352880876,0.09877,111960.0,111950.0,0.59226756]
[1756352881778,0.22101845,111970.0,111960.0,0.1654603]
[1756352881971,0.16996188,111970.0,111960.0,1.37865776]
[1756352882278,0.06996188,111970.0,111960.0,1.37865776]
[1756352882478,0.0002,111980.0,111970.0,0.0893023]
[1756352882671,0.96873,111990.0,111980.0,0.1654444]
[1756352882871,0.96853,111990.0,111980.0,0.59224366]
[1756352883278,0.96853,111990.0,111980.0,0.54459537]
[1756352885481,0.977498,111990.0,111980.0,0.54459537]
[1756352886182,0.978498,111990.0,111980.0,0.54459537]
[1756352887383,0.978498,111990.0,111980.0,0.51485537]
[1756352887680,0.978498,111990.0,111980.0,0.54459537]
[1756352888182,0.978498,111990.0,111980.0,0.1654444]
[1756352888479,0.978498,111990.0,111980.0,0.54459537]
[1756352888782,0.151938,111990.0,111980.0,0.56455177]
[1756352889693,0.075798,111990.0,111980.0,0.56455177]
[1756352889881,0.108738,111990.0,111980.0,0.56455177]
[1756352890282,0.151938,111990.0,111980.0,0.1854008]
[1756352890486,0.151938,111990.0,111980.0,0.56455177]
[1756352895190,0.151938,111990.0,111980.0,0.1854008]
[1756352895391,0.151938,111990.0,111980.0,0.56455177]
[1756352898197,0.001,111990.0,111980.0,1.18455177]
[1756352898989,0.001,111990.0,111980.0,2.01279177]
[1756352899596,0.001,111990.0,111980.0,2.01379177]
[1756352899793,0.04539,112000.0,111990.0,0.1073464]
[1756352900097,0.06717,112000.0,111990.0,0.53987737]
[1756352901194,0.10207,112000.0,111990.0,0.53987737]
[1756352902297,0.11080974,112000.0,111990.0,0.53987737]
[1756352904999,0.00873974,112000.0,111990.0,0.53987737]
[1756352905189,0.14457,112010.0,112000.0,0.1227884]
[1756352905385,0.14437,112010.0,112000.0,0.53986937]
[1756352906597,0.14537,112010.0,112000.0,0.53986937]
[1756352907498,0.15412915,112010.0,112000.0,0.53986937]
[1756352911204,0.18412915,112010.0,112000.0,0.53986937]
[1756352911404,0.20913659,112010.0,112000.0,0.53986937]
[1756352914305,0.20913659,112010.0,112000.0,0.07144]
[1756352914605,0.20913659,112010.0,112000.0,0.04393]
[1756352914907,0.20913659,112010.0,112000.0,0.07144]
[1756352915306,0.20913659,112010.0,112000.0,0.45059097]
[1756352918509,0.20913659,112010.0,112000.0,0.07144]
[1756352918805,0.20913659,112010.0,112000.0,0.45059097]
[1756352919007,0.20913659,112010.0,112000.0,0.07144]
[1756352919306,0.20913659,112010.0,112000.0,0.45059097]
[1756352921307,0.20913659,112010.0,112000.0,0.49784136]
[1756352923212,0.63553795,112010.0,112000.0,0.49784136]
[1756352924212,0.63553795,112010.0,112000.0,0.07144]
[1756352924507,0.63553795,112010.0,112000.0,0.49784136]
[1756352926711,0.78553795,112010.0,112000.0,0.49784136]
[1756352926911,0.92553795,112010.0,112000.0,0.49784136]
[1756352927111,0.49913659,112010.0,112000.0,0.49784136]
[1756352927610,0.32913659,112010.0,112000.0,0.49784136]
[1756352939920,1.15173659,112010.0,112000.0,0.49784136]
[1756352941312,1.15145659,112010.0,112000.0,0.49784136]
[1756352941512,1.15145659,112010.0,112000.0,0.07144]
[1756352941714,1.15145659,112010.0,112000.0,0.49784136]
[1756352942420,1.15145659,112010.0,112000.0,0.58711976]
[1756352942918,1.15145659,112010.0,112000.0,0.1607184]
[1756352943220,1.15145659,112010.0,112000.0,0.58711976]
[1756352944217,0.32913659,112010.0,112000.0,0.58711976]
[1756352944422,1.15081659,112010.0,112000.0,0.1607184]
[1756352944623,1.15081659,112010.0,112000.0,0.58711976]
[1756352945624,1.15081659,112010.0,112000.0,0.49784136]
[1756352954234,1.15081659,112010.0,112000.0,0.47033136]
[1756352959035,1.15081659,112010.0,112000.0,0.04393]
[1756352959330,1.15081659,112010.0,112000.0,0.47033136]
[1756352962342,1.15081659,112010.0,112000.0,0.45991136]
[1756352963045,1.15081659,112010.0,112000.0,0.47033136]
[1756352965647,1.15088469,112010.0,112000.0,0.47033136]
[1756352965838,1.57728605,112010.0,112000.0,0.45991136]
[1756352966036,1.57728605,112010.0,112000.0,0.42640136]
[1756352969848,1.79728605,112010.0,112000.0,0.42640136]
[1756352970051,1.59728605,112010.0,112000.0,0.42640136]
[1756352973154,1.75728605,112010.0,112000.0,0.42640136]
[1756352973543,0.93560605,112010.0,112000.0,0.42640136]
[1756352973743,1.75508605,112010.0,112000.0,0.42640136]
[1756352974255,0.50920469,112010.0,112000.0,0.42640136]
[1756352974450,1.32868469,112010.0,112000.0,0.42640136]
[1756352974751,1.75508605,112010.0,112000.0,0.42640136]
[1756352977052,0.93560605,112010.0,112000.0,0.42640136]
[1756352977254,1.75508605,112010.0,112000.0,0.42640136]
[1756352980758,0.50920469,112010.0,112000.0,0.42640136]
[1756352980958,1.75504605,112010.0,112000.0,0.42640136]
[1756352981355,0.14238,112000.0,111990.0,0.15445946]
[1756352981561,0.16745554,112000.0,111990.0,1.31716218]
[1756352982162,0.5938569,112000.0,111990.0,0.04491]
[1756352982362,0.5938569,112000.0,111990.0,0.47131136]
[1756352982563,0.5938569,112000.0,111990.0,0.46089136]
[1756352983261,0.5938569,112000.0,111990.0,0.47131136]
[1756352986161,1.4132969,112000.0,111990.0,0.47131136]
[1756352988667,1.4132569,112000.0,111990.0,0.47131136]
[1756352989670,0.5938569,112000.0,111990.0,0.47131136]
[1756352989872,1.4132569,112000.0,111990.0,0.47131136]
[1756352990265,0.56878136,112000.0,111990.0,0.47131136]
[1756352990467,0.06704,112000.0,111990.0,1.59459912]
[1756352990671,0.08344,112000.0,111990.0,1.59459912]
[1756352990969,0.10835,112000.0,111990.0,1.59459912]
[1756352991370,0.10835,112000.0,111990.0,1.50531272]
[1756352991567,0.14243,112000.0,111990.0,0.65251]
[1756352991865,0.14243,112000.0,111990.0,1.07891136]
[1756352992062,0.14243,112000.0,111990.0,0.49891136]
[1756352993062,0.14243,112000.0,111990.0,0.07251]
[1756352993270,0.56883136,112000.0,111990.0,0.46089136]
[1756352993464,0.14243,112000.0,111990.0,0.47131136]
[1756352993670,0.56883136,112000.0,111990.0,0.47131136]
[1756352994769,0.56983136,112000.0,111990.0,0.47131136]
[1756352997770,0.58983136,112000.0,111990.0,0.47131136]
[1756352999473,0.16343,112000.0,111990.0,0.47131136]
[1756352999670,0.58983136,112000.0,111990.0,0.47131136]
[1756353000173,0.16343,112000.0,111990.0,0.47131136]
[1756353000374,0.58983136,112000.0,111990.0,0.49891136]
[1756353000574,0.58983136,112000.0,111990.0,0.47131136]
[1756353002577,0.58983136,112000.0,111990.0,0.44281136]
[1756353004078,0.58983136,112000.0,111990.0,0.01641]
[1756353004376,0.58983136,112000.0,111990.0,0.44281136]
[1756353005374,1.40911136,112000.0,111990.0,0.47184136]
[1756353005778,1.40911136,112000.0,111990.0,0.46142136]
[1756353006782,1.40911136,112000.0,111990.0,0.44281136]
[1756353007182,1.43411602,112000.0,111990.0,0.44281136]
[1756353007381,0.14302,111990.0,111980.0,0.0360064]
[1756353007578,0.58942136,111990.0,111980.0,0.47230776]
[1756353007979,0.58942136,111990.0,111980.0,0.48272776]
[1756353008479,1.40866136,111990.0,111980.0,0.50133776]
[1756353008680,1.40866136,111990.0,111980.0,0.48138136]
[1756353010480,0.58942136,111990.0,111980.0,0.05498]
[1756353010680,1.40866136,111990.0,111980.0,0.48138136]
[1756353012679,1.40866136,111990.0,111980.0,0.47096136]
[1756353012880,2.12506272,111990.0,111980.0,0.01]
[1756353013089,2.12506272,111990.0,111970.0,0.42650136]
[1756353013384,2.12506272,111990.0,111970.0,0.46096136]
[1756353013385,0.56942136,111980.0,111970.0,0.46096136]
[1756353014484,0.56942136,111980.0,111970.0,0.47138136]
[1756353016382,0.56942136,111980.0,111970.0,0.04498]
[1756353016582,0.56942136,111980.0,111970.0,0.47138136]
[1756353017287,1.38862136,111980.0,111970.0,0.47138136]
[1756353019488,1.38862136,111980.0,111970.0,0.04498]
[1756353019787,1.38862136,111980.0,111970.0,0.47138136]
[1756353021490,0.56942136,111980.0,111970.0,0.47138136]
[1756353021693,1.38862136,111980.0,111970.0,0.47138136]
[1756353021885,1.38862136,111980.0,111970.0,0.04498]
[1756353022085,0.56942136,111980.0,111970.0,0.49886136]
[1756353022285,1.20866136,111980.0,111970.0,0.49886136]
[1756353023093,0.56942136,111980.0,111970.0,0.49886136]
[1756353023294,1.38862136,111980.0,111970.0,0.49886136]
[1756353023991,1.38862136,111980.0,111970.0,0.03612551]
[1756353024184,1.40862136,111980.0,111970.0,0.02017551]
[1756353024801,1.40862136,111980.0,111970.0,0.44657687]
[1756353025105,1.38858136,111980.0,111970.0,0.46190687]
[1756353025407,1.38858136,111980.0,111970.0,0.49160687]
[1756353026099,0.96218,111980.0,111970.0,0.49160687]
[1756353026411,1.38958136,111980.0,111970.0,0.49160687]
[1756353027309,1.38958136,111980.0,111970.0,0.09268551]
[1756353027500,1.38958136,111980.0,111970.0,0.49160687]
[1756353027702,0.57042136,111980.0,111970.0,0.49160687]
[1756353027902,1.38958136,111980.0,111970.0,0.49160687]
[1756353028907,1.40958136,111980.0,111970.0,0.49160687]
[1756353029110,0.16402,111980.0,111970.0,0.49160687]
[1756353029308,1.40958136,111980.0,111970.0,0.49160687]
[1756353030818,1.40958136,111980.0,111970.0,0.48118687]
[1756353032012,1.40958136,111980.0,111970.0,0.49160687]
[1756353032508,0.59042136,111980.0,111970.0,0.49160687]
[1756353032714,1.40954136,111980.0,111970.0,0.49160687]
[1756353033217,1.40954136,111980.0,111970.0,0.48118687]
[1756353033515,1.40954136,111980.0,111970.0,0.05478551]
[1756353033814,1.40954136,111980.0,111970.0,0.44657687]
[1756353034219,1.40954136,111980.0,111970.0,0.02017551]
[1756353034515,1.40954136,111980.0,111970.0,0.44657687]
[1756353036912,1.40954136,111980.0,111970.0,0.02017551]
[1756353037116,1.40954136,111980.0,111970.0,0.44657687]
[1756353037416,1.76954136,111980.0,111970.0,0.44657687]
[1756353037718,0.59042136,111980.0,111970.0,0.44657687]
[1756353037915,0.59042136,111980.0,111970.0,0.49160687]
[1756353038120,1.4336968,111980.0,111970.0,0.49160687]
[1756353038418,1.7336968,111980.0,111970.0,0.49160687]
[1756353038621,1.30729544,111980.0,111970.0,0.49160687]
[1756353038815,1.7336968,111980.0,111970.0,0.49160687]
[1756353039921,0.6146168,111980.0,111970.0,0.06520551]
[1756353040116,1.4336968,111980.0,111970.0,0.05478551]
[1756353040324,1.73950136,111980.0,111970.0,0.49160687]
[1756353041321,0.16402,111980.0,111970.0,0.49160687]
[1756353041514,1.38946136,111980.0,111970.0,0.06520551]
[1756353041714,1.71946136,111980.0,111970.0,0.49160687]
[1756353042526,1.71946136,111980.0,111970.0,0.06520551]
[1756353042716,1.71946136,111980.0,111970.0,0.49160687]
[1756353043724,1.29306,111980.0,111970.0,0.49160687]
[1756353043927,1.71946136,111980.0,111970.0,0.49160687]
[1756353046128,1.71946136,111980.0,111970.0,0.48118687]
[1756353048725,1.71946136,111980.0,111970.0,0.02017551]
[1756353048925,1.74367681,111980.0,111970.0,0.02017551]
[1756353052532,1.74367681,111980.0,111960.0,0.34319119]
[1756353052721,0.56901136,111970.0,111950.0,0.02014259]
[1756353052928,1.38793136,111960.0,111950.0,0.02004259]
[1756353053127,1.73793136,111960.0,111950.0,0.02004259]
[1756353054443,1.73793136,111960.0,111950.0,0.02104259]
[1756353054733,1.74793136,111960.0,111950.0,0.02204259]
[1756353055433,1.74793136,111960.0,111950.0,0.02104259]
[1756353055624,1.74793136,111960.0,111950.0,0.02004259]
[1756353056334,1.32153,111960.0,111950.0,0.02004259]
[1756353056633,1.74793136,111960.0,111950.0,0.02004259]
[1756353057437,1.74893136,111960.0,111950.0,0.02004259]
[1756353058631,0.14261,111950.0,111940.0,0.0001]
[1756353058827,0.92901136,111950.0,111930.0,0.01992]
[1756353059026,1.38789136,111940.0,111930.0,0.48062136]
[1756353060137,0.14261,111940.0,111930.0,0.05451]
[1756353060327,0.06763,111940.0,111930.0,1.27432712]
[1756353060528,0.05118,111940.0,111930.0,0.84792576]
[1756353060834,0.15151242,111940.0,111930.0,0.84992576]
[1756353061238,0.15151242,111940.0,111930.0,0.76059136]
[1756353061728,0.15151242,111940.0,111930.0,0.75959136]
[1756353063542,0.15151242,111940.0,111930.0,0.75859136]
[1756353064838,0.15151242,111940.0,111930.0,0.33219]
[1756353065034,0.15151242,111940.0,111930.0,0.75859136]
[1756353065342,0.15151242,111940.0,111930.0,0.92859136]
[1756353065943,0.15151242,111940.0,111930.0,1.01792576]
[1756353067142,0.15151242,111940.0,111930.0,0.43219]
[1756353067343,0.57791378,111940.0,111930.0,0.85859136]
[1756353067942,0.57791378,111940.0,111930.0,0.75859136]
[1756353068944,0.57791378,111940.0,111930.0,0.33219]
[1756353069152,0.57791378,111940.0,111930.0,0.75859136]
[1756353070845,0.15151242,111940.0,111930.0,0.75859136]
[1756353071045,0.57791378,111940.0,111930.0,0.75859136]
[1756353071946,0.57791378,111940.0,111930.0,0.84792576]
[1756353072148,0.15151242,111940.0,111930.0,0.84792576]
[1756353072446,0.57791378,111940.0,111930.0,0.84792576]
[1756353075250,0.15151242,111940.0,111930.0,0.84792576]
[1756353075444,0.57791378,111940.0,111930.0,0.84792576]
[1756353082456,0.15151242,111940.0,111930.0,0.84792576]
[1756353082664,0.57791378,111940.0,111930.0,0.84792576]
[1756353083256,0.15151242,111940.0,111930.0,0.84792576]
[1756353088366,0.07653242,111940.0,111930.0,1.35432712]
[1756353088569,0.03805242,111940.0,111930.0,1.09432712]
[1756353088764,0.00890242,111940.0,111930.0,1.62432712]
[1756353089068,0.04675,111950.0,111940.0,0.07571]
[1756353089267,0.15469,111950.0,111940.0,1.32079136]
[1756353090162,0.15569,111950.0,111940.0,1.41011786]
[1756353092359,0.16452755,111950.0,111940.0,1.41011786]
[1756353094469,0.01983755,111950.0,111940.0,1.41011786]
[1756353094673,0.01983755,111950.0,111940.0,1.75999786]
[1756353094874,0.01983755,111950.0,111940.0,1.40999786]
[1756353095073,0.04976755,111950.0,111940.0,1.40999786]
[1756353095679,0.04876755,111950.0,111940.0,1.40999786]
[1756353095868,0.12025755,111950.0,111940.0,1.40999786]
[1756353097575,0.08665755,111950.0,111940.0,1.40999786]
[1756353097775,0.01883755,111950.0,111940.0,1.40999786]
[1756353100279,0.01,111950.0,111940.0,1.75999786]
[1756353100481,0.00921232,111960.0,111950.0,0.1559585]
[1756353100672,0.04901232,111960.0,111950.0,0.58235986]
[1756353100874,0.04901232,111960.0,111950.0,0.90235986]
[1756353101580,0.04,111960.0,111950.0,0.90235986]
[1756353101781,0.04,111960.0,111950.0,1.32876122]
[1756353101974,0.04,111960.0,111950.0,0.90235986]
[1756353102169,0.04,111960.0,111950.0,1.72075986]
[1756353105483,0.04,111960.0,111950.0,2.14716122]
[1756353105683,0.04,111960.0,111950.0,1.2943585]
[1756353105886,0.04,111960.0,111950.0,2.14716122]
[1756353106684,0.04,111960.0,111950.0,2.14708122]
[1756353109485,0.04,111960.0,111950.0,2.40928122]
[1756353110183,0.04,111960.0,111950.0,2.65928122]
[1756353111688,0.04,111960.0,111950.0,1.8064785]
[1756353111880,0.04,111960.0,111950.0,2.65928122]
[1756353113093,0.04,111960.0,111950.0,2.40928122]
[1756353117589,0.06904,111960.0,111950.0,2.40904122]
[1756353118489,0.06904,111960.0,111950.0,1.59096122]
[1756353118689,0.06904,111960.0,111950.0,2.40900122]
[1756353120890,0.06904,111960.0,111950.0,1.59096122]
[1756353121188,0.06904,111960.0,111950.0,2.40900122]
[1756353123791,0.04,111960.0,111950.0,2.40900122]
[1756353125692,0.07217564,111970.0,111960.0,0.1542403]
[1756353125892,0.07197564,111970.0,111960.0,1.34718794]
[1756353126094,0.14198,111980.0,111970.0,0.1233723]
[1756353126295,0.12625,111980.0,111970.0,1.75855366]
[1756353126589,0.08435,111980.0,111970.0,1.75855366]
[1756353126783,0.04,111980.0,111970.0,2.02075366]
[1756353127187,0.04,111980.0,111970.0,1.75855366]
[1756353127990,0.04,111980.0,111970.0,1.75955366]
[1756353128386,0.03807127,111990.0,111970.0,1.75955366]
[1756353128387,0.03807127,111990.0,111980.0,0.1542244]
[1756353128589,0.04787127,111990.0,111980.0,0.98053383]
[1756353129093,0.08554127,111990.0,111980.0,0.98053383]
[1756353129494,0.11840127,111990.0,111980.0,0.98053383]
[1756353130089,0.16061127,111990.0,111980.0,1.79837383]
[1756353130998,0.16161127,111990.0,111980.0,1.79837383]
[1756353136503,0.16161127,111990.0,111980.0,2.22477519]
[1756353136504,0.15278,111990.0,111980.0,2.22477519]
[1756353136703,0.04013,111990.0,111980.0,1.40693519]
[1756353136908,0.04013,111990.0,111980.0,2.22461519]
[1756353141304,0.011,111990.0,111980.0,2.22461519]
[1756353142098,0.011,111990.0,111980.0,2.48681519]
[1756353142307,0.04013,111990.0,111980.0,2.48681519]
[1756353142910,0.04013,111990.0,111980.0,1.66913519]
[1756353143203,0.04013,111990.0,111980.0,2.48665519]
[1756353144010,0.04013,111990.0,111980.0,1.66913519]
[1756353144210,0.04013,111990.0,111980.0,2.48665519]
[1756353145213,0.03013,111990.0,111980.0,2.48665519]
[1756353147315,0.001,111990.0,111980.0,2.48665519]
[1756353149204,0.03013,111990.0,111980.0,2.48665519]
[1756353150515,0.001,111990.0,111980.0,2.22445519]
[1756353151714,0.001,111990.0,111980.0,2.22545519]
[1756353152027,0.06654,112000.0,111990.0,0.1233664]
[1756353152227,0.06634,112000.0,111990.0,2.18438912]
[1756353153127,0.07546753,112000.0,111990.0,2.18438912]
[1756353153621,0.04469,112000.0,111990.0,2.18438912]
[1756353154024,0.09995,112000.0,111990.0,2.18438912]
[1756353157032,0.10895972,112000.0,111990.0,2.18438912]
[1756353158328,0.10895972,112000.0,111990.0,2.18430912]
[1756353159529,0.07654,112000.0,111990.0,2.18430912]
[1756353160029,0.08539844,112000.0,111990.0,2.18430912]
[1756353160429,0.08539844,112000.0,111990.0,2.18422912]
[1756353162321,0.10880844,112000.0,111990.0,1.82422912]
[1756353162525,0.10880844,112000.0,111990.0,1.33702912]
[1756353162728,0.10880844,112000.0,111990.0,1.82418912]
[1756353162928,0.10880844,112000.0,111990.0,2.18418912]
[1756353163324,0.08539844,112000.0,111990.0,2.18418912]
[1756353166828,0.07590844,112000.0,111990.0,2.17418912]
[1756353169537,0.07590844,112000.0,111990.0,1.35702912]
[1756353169837,0.07590844,112000.0,111990.0,2.17406912]
[1756353171930,0.05354844,112000.0,111990.0,2.17406912]
[1756353172130,0.03798844,112000.0,111990.0,2.17406912]
[1756353173639,0.02913,112000.0,111990.0,2.17406912]
[1756353173836,0.05779,112010.0,112000.0,0.0892786]
[1756353174040,0.42218,112010.0,112000.0,0.92082996]
[1756353174339,0.42218,112010.0,112000.0,1.73778996]
[1756353174541,0.42218,112010.0,112000.0,1.39774996]
[1756353175140,0.17218,112010.0,112000.0,1.39774996]
[1756353175329,0.17418,112010.0,112000.0,1.39774996]
[1756353176141,0.15322195,112010.0,112000.0,1.39774996]
[1756353178944,0.15322195,112010.0,112000.0,1.41751132]
[1756353180444,0.15322195,112010.0,112000.0,0.60063132]
[1756353180645,0.15322195,112010.0,112000.0,1.41751132]
[1756353182045,0.15322195,112010.0,112000.0,1.41747132]
[1756353184848,0.15322195,112010.0,112000.0,0.60063132]
[1756353185045,0.15322195,112010.0,112000.0,1.41739132]
[1756353185950,0.15322195,112010.0,112000.0,0.60063132]
[1756353186152,0.15322195,112010.0,112000.0,1.41739132]
[1756353188754,0.09563195,112010.0,112000.0,1.41739132]
[1756353189055,0.03945195,112010.0,112000.0,1.75739132]
[1756353189552,0.07206195,112010.0,112000.0,1.75739132]
[1756353190149,0.07206195,112010.0,112000.0,1.41739132]
[1756353190349,0.09704195,112010.0,112000.0,1.41739132]
[1756353192648,0.07206195,112010.0,112000.0,1.41739132]
[1756353195446,0.03945195,112010.0,112000.0,1.41739132]
[1756353203767,0.13040195,112010.0,112000.0,0.17422996]
[1756353203960,0.07799195,112010.0,112000.0,1.41707132]
[1756353206563,0.15515195,112010.0,112000.0,1.41703132]
[1756353209068,0.13040195,112010.0,112000.0,1.41703132]
[1756353211264,0.07799195,112010.0,112000.0,1.41703132]
[1756353213573,0.13567195,112010.0,112000.0,1.41703132]
[1756353214073,0.11092195,112010.0,112000.0,1.41703132]
[1756353215577,0.07799195,112010.0,112000.0,1.41703132]
[1756353218077,0.07799195,112010.0,112000.0,0.60063132]
[1756353218279,0.07799195,112010.0,112000.0,1.41683132]
[1756353219378,0.03945195,112010.0,112000.0,1.41683132]
[1756353221977,0.002,112010.0,112000.0,1.72683132]
[1756353223778,0.03099,112010.0,112000.0,1.72683132]
[1756353224474,0.03099,112010.0,112000.0,0.99042996]
[1756353224679,0.04631,112010.0,112000.0,1.41671132]
[1756353224879,0.03099,112010.0,112000.0,1.41671132]
[1756353243188,0.002,112010.0,112000.0,1.41671132]
[1756353243393,0.02912,112010.0,112000.0,1.41671132]
[1756353243697,0.02912,112010.0,112000.0,1.43671132]
[1756353244096,0.02912,112010.0,112000.0,1.41671132]
[1756353244289,0.002,112010.0,112000.0,2.01671132]
[1756353244489,0.0092429,112020.0,112010.0,0.1500306]
[1756353244688,0.0090429,112020.0,112010.0,1.37283332]
[1756353244895,0.13600257,112030.0,112020.0,0.1211627]
[1756353245094,0.44491008,112030.0,112020.0,1.33282542]
[1756353245301,0.47203008,112030.0,112020.0,2.14854542]
[1756353245593,0.44777257,112030.0,112020.0,2.14854542]
[1756353246193,0.48580257,112030.0,112020.0,0.1500227]
[1756353246505,0.56291257,112030.0,112020.0,0.57642406]
[1756353246798,0.57176661,112030.0,112020.0,0.57642406]
[1756353247894,0.57176661,112030.0,112020.0,0.1500227]
[1756353248290,0.57176661,112030.0,112020.0,0.57642406]
[1756353248494,0.22176661,112030.0,112020.0,0.57642406]
[1756353248801,0.16381661,112030.0,112020.0,0.57642406]
[1756353248999,0.22176661,112030.0,112020.0,0.57642406]
[1756353252607,0.22176661,112030.0,112020.0,1.00282542]
[1756353253306,0.22176661,112030.0,112020.0,0.1500227]
[1756353253498,0.22176661,112030.0,112020.0,1.00282542]
[1756353255304,0.22176661,112030.0,112020.0,1.81830542]
[1756353257403,0.22176661,112030.0,112020.0,1.00282542]
[1756353257603,0.23176661,112030.0,112020.0,1.81826542]
[1756353258109,0.23176661,112030.0,112020.0,0.1500227]
[1756353258304,0.23176661,112030.0,112020.0,1.00282542]
[1756353259101,0.23176661,112030.0,112020.0,1.39182406]
[1756353267124,0.23176661,112030.0,112020.0,1.81822542]
[1756353271322,0.17381661,112030.0,112020.0,1.81822542]
[1756353271522,0.15465661,112030.0,112020.0,1.81822542]
[1756353272227,0.15465661,112030.0,112020.0,2.19822542]
[1756353273930,0.15465661,112030.0,112020.0,1.3454227]
[1756353274129,0.15465661,112030.0,112020.0,2.19822542]
[1756353277728,0.15465661,112030.0,112020.0,1.38282542]
[1756353277930,0.15465661,112030.0,112020.0,2.19794542]
[1756353278229,0.18643661,112030.0,112020.0,2.19794542]
[1756353279831,0.15465661,112030.0,112020.0,2.19794542]
[1756353281819,0.08950661,112030.0,112020.0,2.19794542]
[1756353282026,0.07950661,112030.0,112020.0,2.19794542]
[1756353282326,0.14081,112040.0,112030.0,0.1500947]
[1756353282532,0.54488845,112040.0,112030.0,0.57649606]
[1756353282733,0.61785509,112040.0,112030.0,0.57649606]
[1756353283331,0.62662794,112040.0,112030.0,0.57649606]
[1756353283830,0.62762794,112040.0,112030.0,0.57649606]
[1756353285633,0.62762794,112040.0,112030.0,0.1500947]
[1756353285935,0.62762794,112040.0,112030.0,0.57649606]
[1756353287226,0.62762794,112040.0,112030.0,0.1500947]
[1756353287634,0.62762794,112040.0,112030.0,0.57649606]
[1756353288234,0.59584794,112040.0,112030.0,0.57649606]
[1756353288631,0.62940794,112040.0,112030.0,0.57649606]
[1756353289233,0.60512949,112040.0,112030.0,0.57649606]
[1756353293836,0.60512949,112040.0,112030.0,0.1500947]
[1756353294036,0.60512949,112040.0,112030.0,0.57649606]
[1756353295030,0.57156949,112040.0,112030.0,0.95649606]
[1756353295233,0.58187949,112040.0,112030.0,0.95649606]
[1756353295537,0.54831949,112040.0,112030.0,0.95649606]
[1756353295938,0.58187949,112040.0,112030.0,0.95649606]
[1756353296136,0.60632949,112040.0,112030.0,0.95649606]
[1756353296635,0.60632949,112040.0,112030.0,0.5096547]
[1756353296834,1.03273085,112040.0,112030.0,0.5096547]
[1756353297037,1.03273085,112040.0,112030.0,0.95649606]
[1756353298242,1.03273085,112040.0,112030.0,0.5300947]
[1756353298439,0.98614085,112040.0,112030.0,0.91755606]
[1756353298740,1.03412085,112040.0,112030.0,0.95728606]
[1756353300143,0.60771949,112040.0,112030.0,0.95728606]
[1756353300345,1.03412085,112040.0,112030.0,0.95728606]
[1756353301342,1.28412085,112040.0,112030.0,0.01]
[1756353302039,1.23614085,112040.0,112030.0,0.01]
[1756353302246,1.28412085,112040.0,112030.0,0.01]
[1756353302448,0.85771949,112040.0,112030.0,0.01]
[1756353302744,1.28412085,112040.0,112030.0,0.01]
[1756353304049,1.28412085,112040.0,112030.0,0.52565626]
[1756353304346,2.09876085,112040.0,112030.0,0.54755626]
[1756353304545,2.09876085,112040.0,112030.0,0.53913626]
[1756353306544,2.09876085,112040.0,112030.0,0.44988136]
[1756353306847,2.09876085,112040.0,112030.0,0.43640136]
[1756353307847,1.67235949,112040.0,112030.0,0.43640136]
[1756353308047,2.09876085,112040.0,112030.0,0.43640136]
[1756353308555,2.09876085,112040.0,112030.0,0.01]
[1756353310543,2.09876085,112040.0,112020.0,0.0977773]
[1756353310749,0.56984136,112030.0,112020.0,0.89684866]
[1756353311639,0.56984136,112030.0,112020.0,0.4704473]
[1756353311844,0.56984136,112030.0,112020.0,0.89784866]
[1756353312748,0.14344,112030.0,112020.0,0.89784866]
[1756353312948,0.56984136,112030.0,112020.0,0.89784866]
[1756353314646,0.58984136,112030.0,112020.0,0.89784866]
[1756353316954,0.58984136,112030.0,112020.0,0.89684866]
[1756353317157,0.59084136,112030.0,112020.0,0.89684866]
[1756353318251,0.59084136,112030.0,112020.0,0.91728866]
[1756353318454,0.14444,112030.0,112020.0,0.91728866]
[1756353318648,0.57084136,112030.0,112020.0,0.91728866]
[1756353320451,0.001,112030.0,112020.0,1.59369002]
[1756353321655,0.02891,112030.0,112020.0,1.59369002]
[1756353323155,0.001,112030.0,112020.0,1.59369002]
[1756353325549,0.001,112030.0,112020.0,1.60282566]
[1756353326161,0.001,112030.0,112020.0,1.59369002]
[1756353328357,0.02891,112030.0,112020.0,1.59369002]
[1756353333862,0.001,112030.0,112020.0,1.59369002]
[1756353334250,0.001,112030.0,112020.0,1.34369002]
[1756353335854,0.02891,112030.0,112020.0,2.15793002]
[1756353337363,0.001,112030.0,112020.0,2.15793002]
[1756353337862,0.001,112030.0,112020.0,2.42013002]
[1756353340560,0.02891,112030.0,112020.0,2.42013002]